bitfinex-derivatives/quotes_SOLF0:USTF0_20240904
["timestamp","ask_amount","ask_price","bid_price","bid_amount"]
[1725456718155,0.05247994,128.78,128.77,3.883]
[1725456718759,0.05247994,128.78,128.75,0.05079337]
[1725456719159,0.05247994,128.78,128.75,3.93429337]
[1725456719457,3.93537994,128.78,128.75,3.93429337]
[1725456720254,0.05247994,128.78,128.75,0.05079337]
[1725456720861,0.05247994,128.78,128.77,3.883]
[1725456721354,3.8817,128.82,128.77,37.3]
[1725456721561,7.782,128.84,128.76,37.3]
[1725456721766,37.3,128.81,128.72,38.6942]
[1725456721951,7.782,128.84,128.68,1.3993]
[1725456721952,37.3,128.77,128.68,1.3993]
[1725456722152,5.35011941,128.76,128.68,1.3993]
[1725456722366,5.35011941,128.76,128.61,1.4598]
[1725456722367,3.8847,128.72,128.71,0.05337294]
[1725456722559,37.3,128.73,128.61,2.8591]
[1725456722750,37.3,128.74,128.58,37.3]
[1725456722751,37.3,128.68,128.58,37.3]
[1725456723058,37.3,128.64,128.55,1.3452]
[1725456723265,37.3,128.66,128.42,101.88524969]
[1725456723266,37.3,128.6,128.5,37.3]
[1725456723557,37.3,128.56,128.47,37.3]
[1725456723751,37.35187528,128.56,128.54,0.04926625]
[1725456723952,3.8912,128.51,128.46,1.3993]
[1725456724162,44.81,128.55,128.46,1.3993]
[1725456724353,44.81,128.57,128.46,46.2093]
[1725456724759,44.81,128.55,128.44,44.81]
[1725456725159,0.04984154,128.51,128.48,0.05406533]
[1725456726966,0.04984154,128.51,128.48,44.86406533]
[1725456727262,0.04984154,128.51,128.5,44.81]
[1725456727453,9.2187,128.62,128.5,44.81]
[1725456727651,44.81,128.61,128.5,44.81]
[1725456727860,44.81,128.59,128.49,1.4605]
[1725456728059,44.81,128.57,128.46,44.81]
[1725456728452,44.86760563,128.53,128.5,0.05547526]
[1725456728651,44.8606687,128.53,128.5,0.05876701]
[1725456728856,3.8916,128.49,128.43,5.2383]
[1725456729056,3.8916,128.49,128.42,150.68233039]
[1725456729057,44.81,128.51,128.42,3.9870807]
[1725456729260,44.81,128.51,128.4,44.81]
[1725456729460,3.8918,128.48,128.42,3.8936]
[1725456729652,3.8918,128.48,128.4,44.81]
[1725456729653,44.81,128.51,128.4,44.81]
[1725456729855,0.05211752,128.47,128.44,0.05957982]
[1725456730458,3.8927,128.45,128.44,0.05957982]
[1725456730858,0.05211752,128.47,128.44,0.05957982]
[1725456731163,0.05211752,128.47,128.44,44.86957982]
[1725456732165,0.05211752,128.47,128.46,44.81]
[1725456732464,1.3736,128.56,128.46,44.81]
[1725456732661,44.81,128.54,128.44,44.81]
[1725456733469,0.05102168,128.5,128.48,0.05976091]
[1725456733660,3.94232168,128.5,128.48,0.05976091]
[1725456734060,0.05102168,128.5,128.48,3.95136091]
[1725456734259,0.05102168,128.5,128.48,0.05976091]
[1725456734662,0.05102168,128.5,128.48,3.95136091]
[1725456734867,0.05102168,128.5,128.49,44.81]
[1725456735371,0.05102168,128.5,128.48,0.05976091]
[1725456736262,0.05102168,128.5,128.49,48.7015]
[1725456736460,44.81,128.62,128.49,44.81]
[1725456736660,7.782,128.61,128.52,44.81]
[1725456736865,7.782,128.61,128.52,48.7005]
[1725456737267,3.8893,128.57,128.5,44.81]
[1725456737466,7.782,128.61,128.52,44.81]
[1725456737664,7.782,128.61,128.55,0.058773]
[1725456737871,52.592,128.64,128.55,0.058773]
[1725456738170,52.592,128.64,128.58,0.05290683]
[1725456738666,3.8885,128.59,128.58,0.05290683]
[1725456739264,4.189,128.65,128.58,0.05290683]
[1725456739567,56.55598848,128.66,128.6,44.81]
[1725456739568,7.782,128.66,128.6,44.81]
[1725456739771,271.81,128.71,128.6,44.81]
[1725456739772,228.353,128.71,128.62,44.86576881]
[1725456739966,0.40416342,128.7,128.65,0.05937664]
[1725456740166,3.80542173,128.7,128.65,0.05937664]
[1725456740371,1.353,128.71,128.65,0.05937664]
[1725456741771,3.886,128.68,128.65,0.05937664]
[1725456742075,3.82915213,128.7,128.65,0.05937664]
[1725456742371,7.782,128.75,128.66,44.81]
[1725456742578,7.782,128.75,128.69,0.05976545]
[1725456742778,7.782,128.76,128.69,0.05976545]
[1725456742976,52.592,128.75,128.69,0.05976545]
[1725456743282,52.592,128.75,128.71,0.05951133]
[1725456743570,3.80770235,128.74,128.72,0.0549196]
[1725456743775,3.80770235,128.74,128.72,0.05607275]
[1725456743974,3.8842,128.73,128.72,0.05607275]
[1725456744173,7.782,128.76,128.72,0.05607275]
[1725456744568,3.8842,128.73,128.72,0.05607275]
[1725456745280,3.8842,128.73,128.46,384.70442552]
[1725456745281,44.81,128.73,128.46,384.70442552]
[1725456745587,44.81,128.73,128.58,2.7796]
[1725456745771,3.8861,128.67,128.58,2.7796]
[1725456745977,3.89320756,128.7,128.58,2.7796]
[1725456746174,44.81,128.68,128.58,47.5896]
[1725456746373,0.05692601,128.64,128.62,0.055839]
[1725456746902,3.8873,128.63,128.62,0.055839]
[1725456747180,44.86692601,128.64,128.56,3.8893]
[1725456747372,44.86692601,128.64,128.5,4.111]
[1725456747373,44.81,128.64,128.52,44.81]
[1725456747574,44.81,128.62,128.5,48.921]
[1725456747778,44.81,128.6,128.51,3.8908]
[1725456748387,0.05061526,128.57,128.54,0.04914078]
[1725456749282,3.8897,128.55,128.54,0.04914078]
[1725456749481,0.05061526,128.57,128.54,0.04914078]
[1725456750985,0.05061526,128.57,128.55,3.8896]
[1725456751484,0.05061526,128.57,128.56,3.8894]
[1725456751877,0.05061526,128.57,128.54,0.04914078]
[1725456752683,0.05061526,128.57,128.54,44.85914078]
[1725456753185,0.05061526,128.57,128.54,0.04914078]
[1725456753782,3.93991526,128.57,128.54,0.04914078]
[1725456753983,0.05061526,128.57,128.54,48.78234936]
[1725456754189,0.05061526,128.57,128.56,3.8894]
[1725456754577,0.05061526,128.57,128.54,48.74884078]
[1725456754777,0.05061526,128.57,128.54,44.85914078]
[1725456755090,0.05061526,128.57,128.54,0.04914078]
[1725456756284,0.05061526,128.57,128.54,3.93894078]
[1725456756479,0.05061526,128.57,128.54,0.04914078]
[1725456756880,3.93991526,128.57,128.54,0.04914078]
[1725456757077,0.05061526,128.57,128.54,0.04914078]
[1725456757488,3.8896,128.56,128.54,0.04914078]
[1725456757691,0.05061526,128.57,128.54,0.04914078]
[1725456758385,0.05061526,128.57,128.46,48.70442552]
[1725456758590,3.8898,128.55,128.51,3.8907]
[1725456758782,44.81,128.6,128.49,44.81]
[1725456759478,0.05970685,128.56,128.53,0.04938817]
[1725456759681,3.8897,128.55,128.53,0.04938817]
[1725456760081,0.05970685,128.56,128.53,0.04938817]
[1725456760295,0.05970685,128.56,128.53,44.85938817]
[1725456760687,0.05970685,128.56,128.54,3.89]
[1725456760989,0.05970685,128.56,128.53,44.85938817]
[1725456761691,0.05970685,128.56,128.54,3.8898]
[1725456761892,0.05970685,128.56,128.53,0.04938817]
[1725456762193,0.05970685,128.56,128.55,3.8897]
[1725456762493,0.05970685,128.56,128.55,48.6997]
[1725456762890,7.782,128.64,128.55,48.65899229]
[1725456763194,1.3687,128.65,128.57,44.81]
[1725456763693,1.3687,128.65,128.56,2.7407]
[1725456763897,0.0508173,128.62,128.59,0.05185879]
[1725456765290,3.888,128.61,128.59,0.05185879]
[1725456765494,0.0508173,128.62,128.59,0.05185879]
[1725456765996,3.8882,128.6,128.59,0.05185879]
[1725456767790,44.81,128.62,128.51,47.5517]
[1725456767994,52.592,128.62,128.51,47.5517]
[1725456768393,3.8891,128.57,128.54,3.8899]
[1725456768589,3.95963674,128.63,128.53,44.81]
[1725456768789,0.05345136,128.59,128.57,44.862225]
[1725456768992,0.05317484,128.59,128.57,44.8632646]
[1725456769297,0.05317484,128.59,128.57,0.0532646]
[1725456769498,0.05317484,128.59,128.57,3.9421646]
[1725456769697,0.05317484,128.59,128.57,44.8632646]
[1725456769893,0.05317484,128.59,128.58,3.8888]
[1725456770104,0.05317484,128.59,128.57,0.0532646]
[1725456770492,3.8905,128.53,128.49,1.3671]
[1725456770794,52.592,128.6,128.49,1.3671]
[1725456771104,3.89,128.54,128.51,3.8907]
[1725456771288,53.9924,128.6,128.49,1.3671]
[1725456771497,0.05492437,128.56,128.53,44.86789472]
[1725456771695,0.05492437,128.56,128.55,3.8897]
[1725456772601,4.2216,128.65,128.58,3.8886]
[1725456772802,4.2216,128.65,128.56,2.8772]
[1725456772803,0.40423945,128.64,128.56,2.8772]
[1725456773003,4.2216,128.65,128.56,2.8772]
[1725456773301,3.8878,128.62,128.58,3.8886]
[1725456773694,0.05017282,128.61,128.59,0.04958206]
[1725456773890,0.05017282,128.61,128.59,3.93798206]
[1725456774300,0.05017282,128.61,128.59,0.04958206]
[1725456775101,3.8882,128.6,128.59,0.04958206]
[1725456775300,0.05017282,128.61,128.59,0.04958206]
[1725456775904,3.8882,128.6,128.59,0.04958206]
[1725456776497,0.05017282,128.61,128.59,0.04958206]
[1725456777211,3.8882,128.6,128.59,0.04958206]
[1725456777410,0.05017282,128.61,128.51,44.81]
[1725456777705,44.81,128.62,128.51,3.8906]
[1725456777706,3.8899,128.55,128.51,3.8906]
[1725456778108,44.81,128.6,128.49,50.1039]
[1725456778510,0.0586309,128.56,128.53,0.05872224]
[1725456778811,3.8903,128.54,128.49,44.57122224]
[1725456779312,7.782,128.59,128.49,44.57122224]
[1725456779505,7.782,128.57,128.49,1.4025]
[1725456779706,7.782,128.57,128.52,0.04928652]
[1725456779707,0.05442907,128.54,128.52,0.04928652]
[1725456779905,3.8903,128.53,128.52,0.04928652]
[1725456780211,0.05442907,128.54,128.52,0.04928652]
[1725456780212,0.05442907,128.54,128.53,3.8903]
[1725456781510,3.8886,128.59,128.53,44.81]
[1725456781709,2.9058,128.62,128.53,44.81]
[1725456781905,44.81,128.6,128.49,46.2125]
[1725456782109,44.81,128.58,128.49,1.4025]
[1725456782503,0.05852034,128.55,128.52,0.05968642]
[1725456782701,3.8905,128.53,128.52,0.05968642]
[1725456783103,0.05852034,128.55,128.52,0.05968642]
[1725456783707,0.05852034,128.55,128.54,3.89]
[1725456784112,2.9058,128.62,128.57,3.889]
[1725456784413,228.3687,128.65,128.57,44.81]
[1725456784614,47.5782,128.69,128.61,3.8878]
[1725456784803,0.40389343,128.68,128.58,1.4581]
[1725456785210,0.05596384,128.64,128.62,0.05600634]
[1725456786507,0.05596384,128.64,128.63,3.8873]
[1725456787109,570.96316636,128.77,128.63,44.81]
[1725456787303,570.96316636,128.77,128.59,46.1366]
[1725456787304,1.3203,128.76,128.66,44.81]
[1725456787508,0.40354297,128.75,128.66,44.81]
[1725456787809,0.40354297,128.75,128.67,3.8859]
[1725456788122,0.05919259,128.72,128.7,0.05504513]
[1725456789210,3.94379259,128.72,128.7,0.05504513]
[1725456789406,0.05919259,128.72,128.7,0.05504513]
[1725456789903,3.98203592,128.9,128.71,44.81]
[1725456790103,46.53131227,128.89,128.77,44.81]
[1725456790306,0.40321227,128.88,128.77,44.81]
[1725456790519,50.09073105,128.89,128.77,44.81]
[1725456791011,0.0449766,128.84,128.82,0.05374694]
[1725456793814,0.0449766,128.84,128.82,3.93524694]
[1725456794014,0.0449766,128.84,128.82,0.05374694]
[1725456794411,3.8812,128.83,128.82,0.05374694]
[1725456794609,52.592,128.85,128.73,50.15106541]
[1725456794913,52.592,128.82,128.71,46.2654]
[1725456795110,52.592,128.82,128.73,3.84758428]
[1725456795307,7.782,128.82,128.73,48.65758428]
[1725456795502,7.782,128.82,128.73,44.81]
[1725456795707,0.05983126,128.79,128.76,0.05327222]
[1725456796522,3.883,128.77,128.76,0.05327222]
[1725456796721,11.665,128.77,128.76,0.05327222]
[1725456797106,0.05983126,128.79,128.76,0.05327222]
[1725456797306,0.05983126,128.79,128.76,44.86327222]
[1725456797819,0.05983126,128.79,128.77,3.883]
[1725456798316,0.05983126,128.79,128.76,44.86327222]
[1725456798618,0.05983126,128.79,128.78,3.8827]
[1725456799412,7.782,128.86,128.81,3.8818]
[1725456799613,7.782,128.86,128.78,44.81]
[1725456799811,7.782,128.86,128.76,44.81]
[1725456800015,0.40386097,128.85,128.73,44.81]
[1725456800522,0.03889228,128.8,128.78,0.05064406]
[1725456801318,3.8824,128.79,128.78,0.05064406]
[1725456801519,0.03889228,128.8,128.7,44.81]
[1725456801520,44.81,128.8,128.7,44.81]
[1725456801711,52.592,128.78,128.67,46.2676]
[1725456802113,3.8844,128.73,128.69,3.8852]
[1725456802314,52.592,128.75,128.66,47.6436]
[1725456802708,0.05776541,128.72,128.69,0.05037284]
[1725456803117,3.8851,128.7,128.69,0.05037284]
[1725456803322,52.592,128.73,128.61,46.256]
[1725456804114,3.8865,128.66,128.62,3.8875]
[1725456804317,52.592,128.73,128.63,0.05708406]
[1725456804516,7.782,128.73,128.65,44.81]
[1725456804718,0.05942498,128.69,128.67,0.0551226]
[1725456805216,0.05942498,128.69,128.68,3.8858]
[1725456806918,1.3291,128.79,128.67,44.81]
[1725456807110,1.3291,128.79,128.65,46.2338]
[1725456807111,1.3291,128.79,128.7,44.81]
[1725456807315,46.1391,128.79,128.7,44.81]
[1725456807519,1.3291,128.79,128.7,44.81]
[1725456807718,1.3291,128.79,128.72,3.8843]
[1725456807912,0.05980567,128.76,128.73,0.05791892]
[1725456808820,0.05980567,128.76,128.74,3.8838]
[1725456809019,0.05980567,128.76,128.73,0.05791892]
[1725456809225,3.8839,128.75,128.73,0.05791892]
[1725456809924,3.8839,128.74,128.73,0.05791892]
[1725456811425,3.8837,128.75,128.73,0.05791892]
[1725456811722,0.05980567,128.76,128.73,0.05791892]
[1725456811921,0.05980567,128.76,128.74,3.8837]
[1725456812131,0.05980567,128.76,128.73,0.05791892]
[1725456812335,0.05980567,128.76,128.75,3.8836]
[1725456812819,0.05980567,128.76,128.73,0.05791892]
[1725456813422,0.05980567,128.76,128.75,3.8836]
[1725456814023,0.05980567,128.76,128.74,44.81]
[1725456814627,0.05980567,128.76,128.73,0.05791892]
[1725456815214,3.94330567,128.76,128.73,0.05791892]
[1725456815628,0.05980567,128.76,128.73,0.05791892]
[1725456815829,0.05980567,128.76,128.75,3.8836]
[1725456817626,0.40416956,128.82,128.74,44.81]
[1725456817816,0.40416956,128.82,128.76,44.81]
[1725456818327,0.40416956,128.82,128.74,44.81]
[1725456818527,0.02067853,128.79,128.77,0.05470729]
[1725456819220,3.8827,128.78,128.77,0.05470729]
[1725456819421,0.02067853,128.79,128.77,0.05470729]
[1725456820221,3.90317853,128.79,128.77,0.05470729]
[1725456821718,3.8827,128.78,128.77,0.05470729]
[1725456822328,3.90327853,128.79,128.77,0.05470729]
[1725456822520,0.02067853,128.79,128.77,0.05470729]
[1725456822831,0.02067853,128.79,128.78,3.8827]
[1725456823732,0.02067853,128.79,128.78,48.6927]
[1725456824229,0.02067853,128.79,128.78,3.8827]
[1725456825140,3.8811,128.84,128.81,3.8817]
[1725456825723,3.8811,128.84,128.73,3.84603049]
[1725456825724,9.1666,128.9,128.82,44.81]
[1725456825924,7.782,128.9,128.82,48.71774248]
[1725456826125,7.782,128.9,128.73,3.84603049]
[1725456826126,7.782,128.9,128.85,0.05811607]
[1725456826327,52.592,128.9,128.85,0.05811607]
[1725456826823,3.8802,128.87,128.85,0.05811607]
[1725456827226,52.592,128.9,128.85,0.05811607]
[1725456827424,3.8802,128.87,128.85,0.05811607]
[1725456827737,52.592,128.9,128.85,0.05811607]
[1725456828031,3.8802,128.87,128.85,0.05811607]
[1725456828239,52.592,128.9,128.85,0.05811607]
[1725456828539,3.8803,128.86,128.85,0.05811607]
[1725456829036,3.8811,128.84,128.76,44.81]
[1725456829225,1.367,128.87,128.76,44.81]
[1725456829427,1.367,128.87,128.8,3.8819]
[1725456829828,0.05707003,128.85,128.82,0.0594746]
[1725456830028,0.05166225,128.85,128.82,0.0594746]
[1725456830737,3.8812,128.83,128.82,0.0594746]
[1725456830933,0.05166225,128.85,128.82,0.0594746]
[1725456831333,3.93236225,128.85,128.82,3.9408746]
[1725456831635,0.05166225,128.85,128.82,0.0594746]
[1725456831834,3.8812,128.83,128.82,0.0594746]
[1725456833227,48.62376955,128.84,128.75,1.3368]
[1725456833432,44.81,128.82,128.75,1.3368]
[1725456833628,50.03096955,128.84,128.77,3.8828]
[1725456833827,3.8819,128.81,128.75,1.3368]
[1725456834038,44.81,128.86,128.75,46.1468]
[1725456834239,0.05951731,128.82,128.79,0.05486837]
[1725456834630,0.05951731,128.82,128.79,3.93706837]
[1725456835236,3.94101731,128.82,128.79,3.93706837]
[1725456835440,0.05951731,128.82,128.8,3.882]
[1725456835631,0.05951731,128.82,128.79,0.05486837]
[1725456835944,3.94121731,128.82,128.79,0.05486837]
[1725456836442,3.94121731,128.82,128.79,3.93716837]
[1725456836842,0.05951731,128.82,128.79,0.05486837]
[1725456837342,3.8821,128.8,128.79,0.05486837]
[1725456838734,7.84151731,128.82,128.79,0.05486837]
[1725456839143,3.882,128.81,128.79,0.05486837]
[1725456839445,0.05951731,128.82,128.79,0.05486837]
[1725456839633,3.94121731,128.82,128.79,0.05486837]
[1725456839838,0.05951731,128.82,128.79,0.05486837]
[1725456840644,3.8818,128.81,128.79,0.05486837]
[1725456840843,0.05951731,128.82,128.79,0.05486837]
[1725456841240,44.81,128.8,128.71,2.804]
[1725456841834,44.81,128.8,128.71,6.65047872]
[1725456842234,7.782,128.83,128.71,6.65047872]
[1725456842235,0.0555038,128.77,128.74,0.05075108]
[1725456842440,0.05876005,128.77,128.74,0.0569862]
[1725456842638,7.782,128.83,128.72,44.81]
[1725456842639,7.782,128.83,128.73,1.4596]
[1725456843548,3.8816,128.82,128.79,3.8824]
[1725456843850,3.8816,128.82,128.79,0.05780648]
[1725456843851,0.05626069,128.82,128.79,0.05780648]
[1725456844052,0.05626069,128.82,128.81,3.8818]
[1725456844935,3.8805,128.86,128.83,3.8811]
[1725456845948,0.05145483,128.86,128.84,3.8809]
[1725456846161,0.05145483,128.86,128.83,0.05147369]
[1725456846539,0.05145483,128.86,128.83,3.93267369]
[1725456846848,0.05145483,128.86,128.83,0.05147369]
[1725456847039,0.05145483,128.86,128.85,3.8806]
[1725456848150,9.1687,128.94,128.83,44.81]
[1725456848751,7.782,128.94,128.83,44.81]
[1725456849146,7.782,128.94,128.87,0.04948598]
[1725456849755,7.782,128.94,128.89,3.8792]
[1725456850051,7.782,128.94,128.9,0.054892]
[1725456850651,44.81,128.91,128.9,0.054892]
[1725456851051,52.592,128.93,128.9,0.054892]
[1725456852655,53.954,128.95,128.9,0.054892]
[1725456853450,53.954,128.95,128.9,3.933992]
[1725456854052,53.954,128.95,128.9,0.054892]
[1725456854258,7.782,128.94,128.9,0.054892]
[1725456854463,1.3423,128.97,128.9,0.054892]
[1725456854651,5.14905203,128.97,128.9,0.054892]
[1725456854851,3.8787,128.92,128.9,0.054892]
[1725456855353,5.14905203,128.97,128.9,0.054892]
[1725456855555,44.81,128.96,128.9,0.054892]
[1725456855756,44.81,128.94,128.9,0.054892]
[1725456855951,5.14905203,128.97,128.9,0.054892]
[1725456855952,3.8788,128.91,128.9,0.054892]
[1725456856157,7.782,128.91,128.83,1.3877]
[1725456856361,44.81,128.89,128.79,47.649]
[1725456856558,3.8806,128.86,128.8,1.3877]
[1725456856765,52.592,128.89,128.8,1.3877]
[1725456856967,44.81,128.87,128.79,2.839]
[1725456857161,44.81,128.83,128.82,0.05155838]
[1725456857467,7.83516548,128.84,128.81,0.0526746]
[1725456857649,44.81,128.83,128.73,1.3877]
[1725456857848,0.05068603,128.79,128.78,3.8827]
[1725456858162,0.05876503,128.8,128.77,0.05207927]
[1725456858458,44.86876503,128.8,128.77,0.05590569]
[1725456858663,3.8827,128.78,128.77,0.05590569]
[1725456859052,3.8839,128.75,128.6,7.776]
[1725456859255,3.8839,128.75,128.66,4.1185]
[1725456859558,3.80083021,128.82,128.73,3.884]
[1725456859754,3.8831,128.77,128.73,3.884]
[1725456859958,1.33,128.83,128.7,44.81]
[1725456860161,1.33,128.83,128.69,3.85440136]
[1725456860162,0.05060935,128.78,128.75,0.05383393]
[1725456860360,0.05060935,128.78,128.75,0.04916536]
[1725456860560,0.05060935,128.78,128.75,44.85916536]
[1725456860865,44.81,128.86,128.75,44.81]
[1725456861064,1.33,128.89,128.79,44.81]
[1725456861860,52.592,128.88,128.79,3.97871183]
[1725456862064,0.05496294,128.85,128.83,0.05520402]
[1725456862868,0.05496294,128.85,128.83,3.93620402]
[1725456863054,0.05496294,128.85,128.83,0.05520402]
[1725456863453,0.05496294,128.85,128.84,3.8809]
[1725456864159,7.782,128.91,128.86,3.8802]
[1725456864565,52.592,128.92,128.84,3.91554444]
[1725456864763,44.81,128.94,128.83,44.81]
[1725456865163,47.6498,128.96,128.87,0.05774344]
[1725456865365,47.6498,128.96,128.9,0.05071474]
[1725456865560,3.878,128.94,128.9,3.92961474]
[1725456865760,7.782,128.95,128.9,0.05071474]
[1725456866065,44.81,128.96,128.9,0.05071474]
[1725456866258,44.81,128.99,128.92,3.8783]
[1725456866462,44.81,128.99,128.94,0.04914549]
[1725456866764,3.8776,128.95,128.94,0.04914549]
[1725456866966,52.592,128.99,128.94,0.04914549]
[1725456867152,3.8775,128.96,128.94,0.04914549]
[1725456867353,52.592,128.99,128.94,0.04914549]
[1725456867561,44.81,128.97,128.94,0.04914549]
[1725456868361,3.8776,128.96,128.94,0.04914549]
[1725456868565,44.81,128.97,128.94,0.04914549]
[1725456869466,3.8776,128.95,128.94,0.04914549]
[1725456870059,3.8774,128.96,128.94,0.04914549]
[1725456870561,52.592,128.99,128.94,0.04914549]
[1725456870759,0.40607612,128.98,128.94,0.04914549]
[1725456870967,7.782,129.0,128.94,0.04914549]
[1725456871169,3.79286268,129.02,128.94,0.04914549]
[1725456871368,3.79286268,129.02,128.97,0.05538653]
[1725456871569,3.876,129.01,128.97,0.05538653]
[1725456871868,44.81,129.03,128.99,3.8762]
[1725456872072,44.81,129.03,129.0,0.05008735]
[1725456872259,7.782,129.04,129.0,0.05008735]
[1725456872459,89.47954387,129.26,129.0,0.05008735]
[1725456872460,7.782,129.1,129.0,0.05008735]
[1725456872670,0.40579709,129.07,129.03,0.05173935]
[1725456872861,227.0,129.14,129.03,0.05173935]
[1725456873067,0.40552795,129.13,129.07,0.05410667]
[1725456873269,45.21552795,129.13,129.07,0.05410667]
[1725456873466,0.40552795,129.12,129.07,0.05410667]
[1725456873971,3.8446893,129.14,129.07,0.05410667]
[1725456874172,0.40523892,129.13,129.07,0.05410667]
[1725456874380,0.40523892,129.14,129.09,0.05665257]
[1725456874676,48.67601422,129.18,129.1,0.05606806]
[1725456874871,48.67601422,129.18,129.13,0.05873191]
[1725456874872,1.74136383,129.17,129.13,0.05873191]
[1725456875073,44.81,129.14,129.05,1.3896]
[1725456875265,44.81,129.14,129.08,0.05596088]
[1725456876071,3.8723,129.13,129.08,0.05596088]
[1725456876274,44.81,129.14,129.1,3.8729]
[1725456876478,44.81,129.16,129.11,0.05588426]
[1725456876663,1.3364,129.17,129.12,0.05005802]
[1725456876868,52.592,129.12,129.04,1.3227]
[1725456877180,7.782,129.12,129.04,1.3227]
[1725456877479,44.81,129.16,129.04,47.5]
[1725456877778,0.05167918,129.11,129.09,0.05749748]
[1725456878080,0.05510149,129.11,129.09,0.05749748]
[1725456878375,0.05510149,129.11,129.1,3.8729]
[1725456879173,11.74210151,129.21,129.09,48.69919166]
[1725456879174,52.592,129.21,129.09,48.69919166]
[1725456879374,3.8706,129.19,129.1,1.3251]
[1725456879573,44.81,129.21,129.16,3.8713]
[1725456879969,44.81,129.21,129.11,46.172]
[1725456880170,7.782,129.21,129.15,0.05686737]
[1725456880367,44.81,129.2,129.15,0.05686737]
[1725456880971,7.782,129.21,129.15,0.05686737]
[1725456881177,44.81,129.25,129.19,3.8702]
[1725456881371,44.81,129.27,129.21,0.05077053]
[1725456881885,0.40399819,129.26,129.21,0.05077053]
[1725456882087,44.81,129.23,129.21,0.05077053]
[1725456882376,44.81,129.23,129.1,1.3251]
[1725456882377,44.81,129.23,129.11,46.217]
[1725456882771,44.81,129.25,129.13,44.81]
[1725456883080,44.81,129.27,129.17,44.81]
[1725456883381,0.05410076,129.23,129.21,0.05393913]
[1725456883687,0.05410076,129.23,129.22,3.8693]
[1725456884083,2.7469,129.32,129.21,44.81]
[1725456884084,0.40377081,129.3,129.21,44.81]
[1725456884276,1.3396,129.36,129.28,3.8675]
[1725456884475,1.3396,129.36,129.24,44.81]
[1725456884476,45.21339803,129.35,129.24,44.81]
[1725456884672,0.40339803,129.34,129.24,44.81]
[1725456884984,3.8671,129.31,129.22,44.81]
[1725456885278,1.3396,129.36,129.26,44.81]
[1725456885584,234.7245,129.47,129.3,0.0564035]
[1725456885585,3.8659,129.35,129.3,0.0564035]
[1725456885779,44.81,129.38,129.26,44.81]
[1725456885983,44.81,129.38,129.31,0.05830272]
[1725456886172,1.3143,129.39,129.31,0.05830272]
[1725456886378,44.81,129.44,129.34,0.05354545]
[1725456886575,44.81,129.44,129.38,0.04908368]
[1725456886780,44.81,129.42,129.38,0.04908368]
[1725456886975,44.81,129.4,129.39,0.05602102]
[1725456887181,44.81,129.42,129.38,0.05731569]
[1725456887387,44.81,129.42,129.39,0.05023948]
[1725456887584,44.81,129.42,129.39,0.05221898]
[1725456887781,3.8641,129.4,129.39,0.05221898]
[1725456888092,44.81,129.44,129.39,0.05221898]
[1725456888292,3.8641,129.4,129.39,0.05221898]
[1725456888587,1.3143,129.46,129.39,0.05221898]
[1725456888788,3.8641,129.4,129.39,0.05221898]
[1725456889486,44.81,129.45,129.39,0.05221898]
[1725456889487,42.6741,129.45,129.39,0.05221898]
[1725456889686,44.81,129.43,129.39,0.05221898]
[1725456890294,3.8641,129.4,129.39,0.05221898]
[1725456890688,44.81,129.43,129.39,0.05221898]
[1725456890986,44.81,129.45,129.39,0.05221898]
[1725456891201,1.3143,129.46,129.39,0.05221898]
[1725456891400,0.40199244,129.45,129.39,0.05221898]
[1725456891601,1.3143,129.46,129.39,0.05221898]
[1725456892001,44.81,129.49,129.39,0.05221898]
[1725456892201,0.40183335,129.48,129.43,0.05225068]
[1725456892506,1.3306,129.5,129.43,0.05225068]
[1725456892802,3.8626,129.46,129.43,0.05225068]
[1725456893003,1.3306,129.5,129.43,0.05225068]
[1725456893210,44.81,129.47,129.43,0.05225068]